fUSD/lending_fUSD_20240322
["ID","MTS","AMOUNT","RATE_DAILY","PERIOD"]
[320074369,1711138233882,-608.93,0.000192,2]
[320074371,1711138233892,-440.8,0.000192,2]
[320074373,1711138233903,-3843.36723217,0.000192,2]
[320074375,1711138233912,-180.0,0.00019288,2]
[320074377,1711138233922,-460.38,0.000194,2]
[320074379,1711138233931,-1000.0,0.00019404,2]
[320074381,1711138233941,-155.34,0.00019478,2]
[320074383,1711138233950,-248.04,0.00019518,2]
[320074385,1711138233959,-571.48347,0.0001956,2]
[320074387,1711138233969,-751.84,0.00019637,2]
[320074389,1711138233978,-7052.55313517,0.00019716,2]
[320074391,1711138233987,-252.1,0.000198,2]
[320074393,1711138233997,-789.01698073,0.00019814,2]
[320074395,1711138234006,-1045.0,0.00019827,2]
[320074397,1711138234016,-160.0,0.00019841,2]
[320074399,1711138234025,-152.0,0.00019841,2]
[320074401,1711138234035,-163.91789015,0.0001999,2]
[320074403,1711138234045,-5000.0,0.0002,2]
[320074405,1711138234054,-518.8652905,0.0002,2]
[320074407,1711138234063,-1433.51008077,0.0002,2]
[320074409,1711138234073,-2507.0,0.0002,2]
[320074411,1711138234083,-933.879832,0.0002,3]
[320074413,1711138234092,-472.0,0.0002,2]
[320074415,1711138234102,-660260.23292118,0.0002,2]
[320074787,1711138237924,-661.5912683,0.000179,2]
[320074790,1711138237934,-885.0,0.00018,2]
[320074792,1711138237943,-223.35451106,0.00019,2]
[320074794,1711138237952,-223.35451106,0.00019,2]
[320074796,1711138237962,-223.35451106,0.00019,2]
[320074798,1711138237971,-223.35451106,0.00019,2]
[320074800,1711138237981,-223.35451106,0.00019,2]
[320074802,1711138237990,-223.35451106,0.00019,2]
[320074804,1711138237999,-223.35451106,0.00019,2]
[320074806,1711138238008,-223.35451106,0.00019,2]
[320074808,1711138238018,-223.35451106,0.00019,2]
[320074810,1711138238027,-223.35451106,0.00019,2]
[320074812,1711138238036,-223.35451106,0.00019,2]
[320074814,1711138238045,-192.12,0.0001918,2]
[320074816,1711138238055,-192.12,0.0001918,2]
[320074818,1711138238064,-80936.69455273,0.0002,2]
[320074837,1711138238241,-27.99912637,0.0002,2]
[320074839,1711138238253,-69260.18426154,0.0002,2]
[320074870,1711138238635,-710.56534018,0.0002,2]
[320074876,1711138238680,-2145.43045677,0.0002,2]
[320074882,1711138238733,-208860.91334123,0.0002,2]
[320074884,1711138238742,-500.0,0.00020136,2]
[320074887,1711138238753,-571.48348,0.0002019,2]
[320074888,1711138238763,-452.0,0.00020252,2]
[320074891,1711138238778,-7052.55313517,0.00020321,2]
[320074893,1711138238787,-789.01698073,0.00020451,2]
[320074895,1711138238796,-566.234,0.00020484,2]
[320074897,1711138238806,-960.0,0.00020484,2]
[320074899,1711138238815,-1379.0,0.00020484,2]
[320074901,1711138238824,-1265.0,0.00020484,2]
[320074903,1711138238834,-279.028,0.00020484,2]
[320074905,1711138238844,-605.013,0.00020484,2]
[320074908,1711138238853,-1251.0,0.00020484,2]
[320074910,1711138238864,-1250.0,0.000205,2]
[320074912,1711138238874,-11675.17511002,0.00020547,2]
[320074914,1711138238884,-150.0,0.00020697,2]
[320074916,1711138238894,-150.0,0.00020698,2]
[320074918,1711138238903,-1500.0,0.000207,7]
[320074920,1711138238912,-2513.76568834,0.000207,3]
[320074922,1711138238922,-150.0,0.00020702,2]
[320074924,1711138238931,-150.0,0.00020702,2]
[320074926,1711138238941,-150.0,0.00020705,2]
[320074928,1711138238950,-150.0,0.00020707,2]
[320074930,1711138238959,-150.0,0.00020709,2]
[320074932,1711138238969,-150.0,0.00020713,2]
[320074934,1711138238978,-150.0,0.00020715,2]
[320074936,1711138238988,-150.0,0.00020719,2]
[320074938,1711138238998,-150.0,0.00020721,2]
[320074940,1711138239007,-156.5587868,0.00020721,2]
[320074942,1711138239017,-150.0,0.00020725,2]
[320074944,1711138239026,-150.0,0.00020726,2]
[320074946,1711138239036,-150.0,0.00020727,2]
[320074948,1711138239045,-150.0,0.00020728,2]
[320074950,1711138239055,-150.0,0.00020733,2]
[320074952,1711138239065,-150.0,0.00020735,2]
[320074954,1711138239076,-150.0,0.00020735,2]
[320074956,1711138239086,-150.0,0.00020738,2]
[320074958,1711138239099,-150.0,0.00020741,2]
[320074960,1711138239110,-150.0,0.00020744,2]
[320074962,1711138239123,-150.0,0.00020747,2]
[320074964,1711138239133,-150.0,0.00020753,2]
[320074966,1711138239143,-150.0,0.00020753,2]
[320074968,1711138239152,-150.0,0.00020755,2]
[320074970,1711138239163,-300.0,0.00020757,2]
[320074972,1711138239173,-150.0,0.00020757,2]
[320074974,1711138239183,-150.0,0.00020758,2]
[320074976,1711138239193,-150.0,0.00020759,2]
[320074978,1711138239202,-150.0,0.00020762,2]
[320074980,1711138239212,-300.0,0.00020771,2]
[320074983,1711138239226,-150.0,0.00020776,2]
[320074985,1711138239236,-150.0,0.00020779,2]
[320074987,1711138239246,-150.0,0.00020779,2]
[320074989,1711138239255,-990.3881,0.0002078,2]
[320074991,1711138239266,-150.0,0.00020783,2]
[320074993,1711138239276,-150.0,0.00020783,2]
[320074995,1711138239286,-300.0,0.00020784,2]
[320074996,1711138239295,-150.0,0.00020784,2]
[320074998,1711138239305,-1746.56735397,0.0002079,2]
[320075000,1711138239314,-1746.5673539,0.0002079,2]
[320075002,1711138239323,-1746.5673539,0.0002079,2]
[320075004,1711138239333,-1746.5673539,0.0002079,2]
[320075006,1711138239343,-1746.5673539,0.0002079,2]
[320075008,1711138239352,-228.02220834,0.0002079,2]
[320075011,1711138239365,-228.02220834,0.0002079,2]
[320075012,1711138239374,-228.02220834,0.0002079,2]
[320075013,1711138239384,-228.02220834,0.0002079,2]
[320075014,1711138239395,-228.02220834,0.0002079,2]
[320075015,1711138239405,-150.0,0.00020791,2]
[320075016,1711138239415,-228.02220834,0.00020793,2]
[320075017,1711138239427,-150.0,0.00020796,2]
[320075018,1711138239437,-150.0,0.00020796,2]
[320075019,1711138239446,-150.0,0.00020798,2]
[320075020,1711138239457,-88544.95663039,0.000208,5]
[320075098,1711138240475,-661.59126826,0.00017921,2]
[320075101,1711138240485,-261.91423247,0.00019999,2]
[320075103,1711138240494,-1790.80723589,0.00019999,2]
[320075106,1711138240504,-85.1907405,0.000208,5]
[320075110,1711138240515,-658.090015,0.000208,5]
[320075113,1711138240527,-319.91963,0.000208,5]
[320075116,1711138240539,-384.624,0.000208,5]
[320075126,1711138240584,-4440.06867813,0.000208,5]
[320075164,1711138240821,-833.48328945,0.000208,5]
[320075547,1711138242698,2527.39311144,0.00012685,2]
[320075568,1711138242968,-575676.00000073,0.000208,5]
[320075812,1711138246037,-788.0,0.00018,2]
[320075813,1711138246047,-661.59126826,0.00018041,2]
[320075814,1711138246056,-332.10613584,0.000198,2]
[320075815,1711138246072,-368.89386416,0.000198,2]
[320075816,1711138246082,-1101.28549006,0.00020797,2]
[320075817,1711138246190,-0.00526723,0.00020797,2]
[320075818,1711138246214,-526.71582079,0.00020797,2]
[320075819,1711138246224,-4533.22007921,0.000208,5]
[320075820,1711138246235,-730.37689381,0.000208,5]
[320075851,1711138260678,2527.39311144,0.00012685,2]
[320075852,1711138262962,362.31923313,0.00016638,2]
[320075854,1711138276676,2527.39311144,0.00012479,2]
[320075855,1711138292677,2527.39311144,0.00012479,2]
[320075856,1711138312680,1297.16592209,0.00012479,2]
[320075857,1711138561476,284.5,0.00016694,2]
[320075873,1711139225684,-214.61837387,0.00016907,2]
[320075874,1711139225705,-1238.94442072,0.00016911,2]
[320075875,1711139225726,-314.37851493,0.00016913,2]
[320075876,1711139225747,-157.06412093,0.00017489,2]
[320075877,1711139225768,-164.0,0.00017589,2]
[320075878,1711139225788,-153.0,0.00017589,2]
[320075879,1711139225807,-1541.8594581,0.00017625,2]
[320075880,1711139225827,-28.30115104,0.00017678,2]
[320075881,1711139250372,-167.00483792,0.00017678,2]
[320075903,1711139432101,-1884.55894075,0.00017117,2]
[320075905,1711139432110,-1000.0,0.00017118,2]
[320075906,1711139432119,-270.27,0.00017122,2]
[320075908,1711139432128,-239.86156491,0.00017678,2]
[320075909,1711139432137,-1334.8792864,0.00017767,2]
[320075911,1711139432146,-150.0,0.00017799,2]
[320075912,1711139432156,-150.0,0.00017799,2]
[320075913,1711139432165,-863.2047,0.000178,2]
[320075914,1711139432174,-237.88508651,0.000178,2]
[320075915,1711139432219,-1984.31201349,0.000178,2]
[320075916,1711139432229,-1111.58461873,0.00018,2]
[320075917,1711139432238,-1334.8792864,0.00018015,2]
[320075918,1711139432247,-1541.8594581,0.00018027,2]
[320075919,1711139432257,-4377.25026004,0.0001804,2]
[320075920,1711139432268,-1541.8594581,0.00018121,2]
[320075921,1711139432278,-1334.8792864,0.00018219,2]
[320075922,1711139432287,-1334.8792864,0.00018356,2]
[320075923,1711139432298,-1541.8594581,0.00018478,2]
[320075924,1711139432307,-784.0,0.00018571,2]
[320075925,1711139432318,-1334.8792864,0.00018661,2]
[320075926,1711139432329,-160.55,0.00018814,2]
[320075927,1711139432339,-250.0,0.00018854,2]
[320075928,1711139432349,-250.0,0.00018869,2]
[320075929,1711139432359,-1125.46,0.00018869,2]
[320075930,1711139432368,-170.43,0.00018871,2]
[320075931,1711139432377,-442.77,0.00018875,2]
[320075932,1711139432387,-1541.8594581,0.00018881,2]
[320075933,1711139432396,-173.96,0.00018891,2]
[320075934,1711139432406,-216.0,0.00018891,2]
[320075935,1711139432415,-500.0,0.00018895,2]
[320075936,1711139432425,-160.55,0.00018918,2]
[320075937,1711139432434,-164.0,0.0001892,2]
[320075938,1711139432443,-153.0,0.0001892,2]
[320075939,1711139432453,-1334.8792864,0.00018966,2]
[320075940,1711139432462,-1550.0,0.00019,3]
[320075941,1711139432471,-160.55,0.00019023,2]
[320075942,1711139432480,-500.0,0.0001904,2]
[320075943,1711139432489,-1500.0,0.0001904,2]
[320075944,1711139432498,-500.0,0.0001904,2]
[320075946,1711139432507,-1541.8594581,0.00019121,2]
[320075948,1711139432516,-168.51,0.00019126,2]
[320075950,1711139432526,-160.55,0.00019127,2]
[320075952,1711139432535,-200.0,0.00019178,2]
[320075954,1711139432544,-160.55,0.00019232,2]
[320075956,1711139432553,-160.55,0.00019336,2]
[320075958,1711139432562,-1334.8792864,0.00019346,2]
[320075960,1711139432575,-270.27,0.00019386,2]
[320075962,1711139432585,-160.55,0.00019441,2]
[320075964,1711139432595,-1541.8594581,0.00019446,2]
[320075966,1711139432605,-1334.8792864,0.00019522,2]
[320075968,1711139432614,-160.55,0.00019545,2]
[320075970,1711139432624,-500.0,0.00019588,2]
[320075972,1711139432634,-1500.0,0.00019588,2]
[320075974,1711139432643,-1541.8594581,0.00019647,2]
[320075976,1711139432653,-160.55,0.0001965,2]
[320075978,1711139432662,-160.55,0.00019754,2]
[320075980,1711139432672,-1334.8792864,0.00019782,2]
[320075982,1711139432681,-1541.8594581,0.00019994,2]
[320075984,1711139432691,-925.44592226,0.00019999,2]
[320075986,1711139432700,-257.90500802,0.00019999,2]
[320075988,1711139432710,-19817.08120536,0.0002,2]
[320075990,1711139432720,-2018.44898221,0.0002,2]
[320075992,1711139432729,-72602.64767931,0.0002,2]
[320075994,1711139432738,-1334.8792864,0.00020068,2]
[320075996,1711139432747,-500.0,0.00020136,2]
[320075998,1711139432757,-1500.0,0.00020136,2]
[320076000,1711139432766,-388.296,0.00020214,2]
[320076002,1711139432775,-1265.0,0.00020214,2]
[320076004,1711139432784,-610.49273043,0.00020235,2]
[320076006,1711139432794,-164.99094823,0.00020251,2]
[320076008,1711139432803,-164.0,0.00020252,2]
[320076010,1711139432812,-153.0,0.00020252,2]
[320076012,1711139432823,-286.61,0.00020265,2]
[320076014,1711139432832,-610.49273037,0.00020269,2]
[320076016,1711139432841,-610.49273037,0.00020303,2]
[320076018,1711139432851,-922.88,0.00020335,2]
[320076020,1711139432860,-408.6,0.00020335,2]
[320076022,1711139432869,-610.49273037,0.00020337,2]
[320076024,1711139432878,-610.49273037,0.00020371,2]
[320076026,1711139432887,-610.49273037,0.00020405,2]
[320076028,1711139432896,-610.49273037,0.00020439,2]
[320076030,1711139432906,-610.49273037,0.00020473,2]
[320076032,1711139432915,-1250.0,0.000205,2]
[320076034,1711139432924,-610.49273037,0.00020507,2]
[320076036,1711139432934,-610.49273037,0.00020541,2]
[320076038,1711139432943,-2500.3333,0.00020564,2]
[320076040,1711139432952,-610.49273037,0.00020574,2]
[320076043,1711139432963,-350.86767464,0.0002059,2]
[320076045,1711139432973,-610.49273037,0.00020608,2]
[320076046,1711139432983,-150.0,0.00020618,2]
[320076048,1711139432998,-300.0,0.00020624,2]
[320076051,1711139433008,-150.0,0.00020625,2]
[320076053,1711139433018,-150.0,0.00020627,2]
[320076054,1711139433027,-200.0,0.00020633,2]
[320076057,1711139433040,-800.0,0.00020633,2]
[320076058,1711139433049,-200.0,0.00020633,2]
[320076060,1711139433058,-200.0,0.00020633,2]
[320076062,1711139433069,-500.0,0.00020633,2]
[320076064,1711139433080,-200.0,0.00020633,2]
[320076066,1711139433090,-200.0,0.00020634,2]
[320076068,1711139433100,-800.0,0.00020634,2]
[320076070,1711139433110,-800.0,0.00020634,2]
[320076073,1711139433119,-200.0,0.00020634,2]
[320076074,1711139433129,-200.0,0.00020634,2]
[320076077,1711139433139,-200.0,0.00020634,2]
[320076079,1711139433149,-500.0,0.00020634,2]
[320076081,1711139433158,-150.0,0.00020637,2]
[320076082,1711139433168,-150.0,0.00020637,2]
[320076084,1711139433177,-150.0,0.0002064,2]
[320076087,1711139433187,-150.0,0.0002064,2]
[320076089,1711139433197,-150.0,0.00020641,2]
[320076091,1711139433206,-610.49273037,0.00020642,2]
[320076092,1711139433215,-150.0,0.0002065,2]
[320076094,1711139433225,-150.0,0.00020652,2]
[320076096,1711139433234,-150.0,0.00020661,2]
[320076098,1711139433243,-150.0,0.00020664,2]
[320076100,1711139433252,-150.0,0.00020665,2]
[320076101,1711139433261,-150.0,0.0002067,2]
[320076102,1711139433271,-610.49273037,0.00020676,2]
[320076103,1711139433280,-150.0,0.00020679,2]
[320076104,1711139433289,-150.0,0.0002068,2]
[320076105,1711139433298,-150.0,0.00020682,2]
[320076106,1711139433307,-150.0,0.00020682,2]
[320076107,1711139433320,-500.0,0.00020684,2]
[320076108,1711139433329,-1500.0,0.00020684,2]
[320076109,1711139433338,-150.0,0.00020686,2]
[320076110,1711139433348,-150.0,0.00020686,2]
[320076111,1711139433357,-150.0,0.00020688,2]
[320076112,1711139433366,-150.0,0.00020689,2]
[320076114,1711139433376,-229.7816488,0.00020694,2]
[320076115,1711139433385,-150.0,0.00020696,2]
[320076117,1711139433394,-150.0,0.00020697,2]
[320076120,1711139433403,-150.0,0.00020698,2]
[320076122,1711139433413,-150.0,0.00020698,2]
[320076124,1711139433422,-150.0,0.00020699,2]
[320076126,1711139433431,-1000.0,0.000207,2]
[320076127,1711139433440,-5111.2332,0.000207,2]
[320076130,1711139433450,-8232.71761005,0.000207,2]
[320076132,1711139433459,-157.06412093,0.000207,2]
[320076133,1711139433468,-192.46270085,0.000207,2]
[320076135,1711139433477,-318.1733528,0.000207,2]
[320076138,1711139433487,-150.0,0.00020701,2]
[320076140,1711139433496,-150.0,0.00020706,2]
[320076141,1711139433505,-150.0,0.00020706,2]
[320076144,1711139433515,-150.0,0.00020707,2]
[320076146,1711139433524,-610.49273037,0.0002071,2]
[320076147,1711139433533,-150.0,0.00020715,2]
[320076150,1711139433542,-150.0,0.00020715,2]
[320076152,1711139433551,-150.0,0.00020715,2]
[320076153,1711139433560,-150.0,0.00020715,2]
[320076156,1711139433572,-150.0,0.00020715,2]
[320076157,1711139433581,-150.0,0.00020717,2]
[320076159,1711139433590,-150.0,0.00020723,2]
[320076162,1711139433600,-150.0,0.00020727,2]
[320076164,1711139433609,-150.0,0.0002073,2]
[320076166,1711139433618,-150.0,0.00020731,2]
[320076168,1711139433627,-150.0,0.0002074,2]
[320076170,1711139433636,-150.0,0.0002074,2]
[320076172,1711139433645,-150.0,0.00020743,2]
[320076174,1711139433654,-610.49273037,0.00020744,2]
[320076176,1711139433664,-150.0,0.00020747,2]
[320076178,1711139433674,-150.0,0.00020748,2]
[320076179,1711139433682,-150.0,0.00020749,2]
[320076181,1711139433692,-300.0,0.0002075,2]
[320076184,1711139433701,-150.0,0.00020754,2]
[320076185,1711139433710,-150.0,0.00020759,2]
[320076186,1711139433719,-306.48795313,0.00020759,2]
[320076187,1711139433728,-150.0,0.00020761,2]
[320076188,1711139433737,-150.0,0.00020762,2]
[320076189,1711139433746,-150.0,0.00020766,2]
[320076190,1711139433754,-150.0,0.00020767,2]
[320076191,1711139433763,-150.0,0.0002077,2]
[320076192,1711139433772,-1203.6616388,0.00020777,2]
[320076193,1711139433781,-610.49273037,0.00020778,2]
[320076194,1711139433790,-150.0,0.00020779,2]
[320076195,1711139433798,-150.0,0.0002078,2]
[320076196,1711139433808,-3084.8296,0.0002078,2]
[320076197,1711139433819,-150.0,0.00020782,2]
[320076198,1711139433828,-150.0,0.00020786,2]
[320076199,1711139433837,-400.0,0.00020789,2]
[320076200,1711139433847,-121239.9790785,0.0002079,2]
[320076201,1711139433856,-7915.7254721,0.0002079,2]
[320076202,1711139433866,-2633.5728062,0.0002079,2]
[320076203,1711139433875,-152.01480556,0.0002079,2]
[320076204,1711139433884,-150.0,0.00020794,2]
[320076205,1711139433893,-150.0,0.00020794,2]
[320076206,1711139433902,-150.0,0.00020796,2]
[320076207,1711139433911,-1480.00598007,0.00020797,2]
[320076208,1711139433920,-150.0,0.00020797,2]
[320076209,1711139433929,-284.88562321,0.00020798,2]
[320076210,1711139433939,-209.78331014,0.00020798,2]
[320076211,1711139433948,-1000.80707108,0.00020798,2]
[320076212,1711139433958,-435.26759038,0.00020798,2]
[320076213,1711139433967,-2595.24724,0.00020798,2]
[320076214,1711139434214,-2165.73632536,0.00020799,2]
[320076215,1711139434223,-1434.48698872,0.00020799,2]
[320076216,1711139434233,-157.48380683,0.00020799,2]
[320076217,1711139434243,-500.0,0.00020799,2]
[320076218,1711139434252,-500.0,0.00020799,2]
[320076219,1711139434261,-322.58634046,0.00020799,2]
[320076220,1711139434270,-448.30182662,0.00020799,2]
[320076221,1711139434278,-500.0,0.00020799,2]
[320076222,1711139434288,-298.14505924,0.00020799,2]
[320076223,1711139434297,-500.0,0.00020799,2]
[320076224,1711139434306,-500.0,0.00020799,2]
[320076225,1711139434315,-713.0,0.000208,2]
[320076226,1711139434327,-316725.41906013,0.000208,5]
[320076227,1711139435003,-9244.3813195,0.000208,5]
[320076228,1711139435015,-5591.152029,0.000208,5]
[320076229,1711139435028,-484.70779173,0.000208,5]
[320076230,1711139435050,-1324.34,0.000208,5]
[320076269,1711139438310,-1541.8594581,0.00020107,2]
[320076270,1711139438322,-1251.0,0.00020214,2]
[320076271,1711139438333,-1541.8594581,0.00020278,2]
[320076272,1711139438343,-1334.8792864,0.00020482,2]
[320076273,1711139438352,-4204.10725913,0.000208,5]
[320076274,1711139438420,-266.97950805,0.000208,5]
[320076277,1711139438433,-7857.96199464,0.000208,5]
[320076281,1711139438466,-341.7837347,0.00020797,2]
[320076287,1711139438510,-1003.67624718,0.00020797,2]
[320076289,1711139438520,-84320.74919551,0.000208,5]
[320076292,1711139438547,-384.90313745,0.000208,5]
[320076295,1711139438559,-728.4979226,0.000208,5]
[320076467,1711139440279,-901602.36408051,0.000208,5]
[320076468,1711139440289,-2833.0,0.000208,2]
[320076469,1711139440298,-478.0,0.000208,3]
[320076470,1711139440308,-2000.0,0.000208,2]
[320076471,1711139440318,-200.0,0.000208,2]
[320076472,1711139440329,-472.0,0.000208,2]
[320076473,1711139440338,-200.0,0.000208,2]
[320076475,1711139440347,-2000.0,0.000208,2]
[320076477,1711139440358,-200.0,0.000208,2]
[320076479,1711139440368,-660.0,0.000208,2]
[320076481,1711139440377,-200.0,0.000208,2]
[320076483,1711139440387,-150.0,0.00020801,2]
[320076485,1711139440395,-150.0,0.00020801,2]
[320076487,1711139440405,-150.0,0.00020803,2]
[320076489,1711139440414,-150.0,0.00020804,2]
[320076491,1711139440425,-180.0,0.00020805,2]
[320076492,1711139440435,-150.0,0.00020807,2]
[320076494,1711139440444,-610.49273037,0.00020812,2]
[320076495,1711139440454,-150.0,0.00020813,2]
[320076497,1711139440464,-150.0,0.00020813,2]
[320076499,1711139440473,-150.0,0.00020818,2]
[320076501,1711139440482,-150.0,0.00020823,2]
[320076503,1711139440492,-150.0,0.00020825,2]
[320076505,1711139440502,-150.0,0.00020827,2]
[320076507,1711139440513,-150.0,0.00020829,2]
[320076509,1711139440522,-150.0,0.00020829,2]
[320076511,1711139440532,-150.0,0.00020836,2]
[320076513,1711139440542,-150.0,0.00020837,2]
[320076515,1711139440551,-150.0,0.00020839,2]
[320076517,1711139440561,-150.0,0.0002084,2]
[320076519,1711139440573,-150.0,0.00020841,2]
[320076521,1711139440583,-150.0,0.00020846,2]
[320076523,1711139440593,-610.49273037,0.00020846,2]
[320076524,1711139440603,-150.0,0.00020847,2]
[320076526,1711139440612,-150.0,0.00020848,2]
[320076528,1711139440622,-150.0,0.00020848,2]
[320076530,1711139440633,-150.0,0.00020849,2]
[320076532,1711139440643,-150.0,0.0002085,2]
[320076534,1711139440653,-300.0,0.0002085,2]
[320076536,1711139440663,-150.0,0.00020857,2]
[320076538,1711139440673,-150.0,0.00020858,2]
[320076540,1711139440684,-150.0,0.00020859,2]
[320076542,1711139440694,-150.0,0.0002086,2]
[320076544,1711139440703,-150.0,0.00020873,2]
[320076546,1711139440715,-150.0,0.00020877,2]
[320076548,1711139440726,-150.0,0.00020877,2]
[320076550,1711139440736,-1334.8792864,0.00020877,2]
[320076552,1711139440747,-594253.17584483,0.0002088,2]
[320076554,1711139440757,-150.0,0.0002088,2]
[320076556,1711139440768,-2011.01255068,0.0002088,3]
[320076558,1711139440779,-171.5974988,0.0002088,2]
[320076560,1711139440790,-782.79463903,0.0002088,2]
[320076562,1711139440800,-610.49273037,0.0002088,2]
[320076565,1711139440810,-189.70905054,0.0002088,2]
[320076566,1711139440819,-2003.68432844,0.0002088,2]
[320076569,1711139440837,-150.0,0.00020881,2]
[320076570,1711139440847,-150.0,0.00020885,2]
[320076573,1711139440857,-784.0,0.00020892,2]
[320076574,1711139440867,-300.0,0.00020893,2]
[320076576,1711139440877,-152.01480556,0.00020893,2]
[320076578,1711139440887,-767.0,0.000209,2]
[320076580,1711139440897,-396.72,0.000209,2]
[320076582,1711139440908,-150.0,0.00020901,2]
[320076584,1711139440918,-150.0,0.00020907,2]
[320076586,1711139440928,-150.0,0.00020911,2]
[320076588,1711139440937,-150.0,0.00020917,2]
[320076590,1711139440947,-150.0,0.00020919,2]
[320076592,1711139440957,-215.20492512,0.00020925,2]
[320076594,1711139440967,-1541.8594581,0.00020946,2]
[320076596,1711139440978,-300.0,0.00020952,2]
[320076598,1711139440988,-300.0,0.00020953,2]
[320076600,1711139441001,-1016498.31658423,0.0002098,2]
[320076602,1711139441011,-300.0,0.0002098,2]
[320076604,1711139441020,-9.32158641,0.00020985,2]
[320076606,1711139441030,-300.0,0.00020992,2]
[320076608,1711139441040,-300.0,0.00020995,2]
[320076610,1711139441050,-155.0,0.00020998,3]
[320076612,1711139441060,-155.35526129,0.00020998,2]
[320076614,1711139441075,-112913.62646987,0.00021,2]
[320076616,1711139441087,-2000.0,0.00021,2]
[320076618,1711139441098,-712.02089859,0.00021,2]
[320076620,1711139441109,-460.38,0.00021,2]
[320076621,1711139441119,-548.03,0.00021,2]
[320076623,1711139441130,-1600.0,0.00021,3]
[320076625,1711139441142,-2000.0,0.00021008,2]
[320076627,1711139441152,-200.0,0.00021008,2]
[320076629,1711139441163,-200.0,0.00021008,2]
[320076631,1711139441174,-1153.85187013,0.00021008,2]
[320076633,1711139441186,-200.0,0.00021008,2]
[320076635,1711139441196,-200.0,0.00021008,2]
[320076638,1711139441207,-8232.71760995,0.00021076,2]
[320076639,1711139441217,-184.25,0.00021096,2]
[320076642,1711139441227,-9057.14,0.00021096,2]
[320076644,1711139441237,-2000.0,0.00021096,2]
[320076645,1711139441246,-160.9,0.00021162,2]
[320076647,1711139441256,-1541.8594581,0.00021177,2]
[320076649,1711139441266,-1334.8792864,0.00021191,2]
[320076651,1711139441277,-2500.0,0.0002121,2]
[320076653,1711139441290,-2000.0,0.00021218,2]
[320076655,1711139441300,-200.0,0.00021218,2]
[320076657,1711139441310,-200.0,0.00021218,2]
[320076659,1711139441319,-200.0,0.00021218,2]
[320076661,1711139441336,-200.0,0.00021218,2]
[320076663,1711139441347,-500.0,0.00021232,2]
[320076665,1711139441357,-1500.0,0.00021232,2]
[320076667,1711139441367,-216.0,0.00021253,2]
[320076669,1711139441377,-2011.01255066,0.00021388,4]
[320076671,1711139441387,-200.0,0.0002143,2]
[320076673,1711139441396,-200.0,0.0002143,2]
[320076675,1711139441406,-200.0,0.0002143,2]
[320076677,1711139441416,-200.0,0.0002143,2]
[320076679,1711139441425,-8232.71760995,0.00021451,2]
[320076681,1711139441435,-1541.8594581,0.00021484,2]
[320076683,1711139441444,-20106.99957485,0.000215,2]
[320076685,1711139441453,-145003.3785534,0.00021572,2]
[320076687,1711139441463,-1334.8792864,0.00021579,2]
[320076689,1711139441474,-452.0,0.00021583,2]
[320076691,1711139441484,-154.0,0.00021583,2]
[320076693,1711139441494,-153.0,0.00021583,2]
[320076695,1711139441503,-1125.46,0.00021609,2]
[320076697,1711139441513,-200.0,0.00021645,2]
[320076699,1711139441523,-200.0,0.00021645,2]
[320076701,1711139441532,-200.0,0.00021645,2]
[320076703,1711139441541,-200.0,0.00021645,2]
[320076705,1711139441551,-270.27,0.0002165,2]